bitfinex/quotes_ETHUSD_20250725
["timestamp","ask_amount","ask_price","bid_price","bid_amount"]
[1753456982532,1.18428477,3643.3,3642.6,0.7636]
[1753456982727,0.4293,3643.2,3642.6,0.7636]
[1753456982980,4.425,3643.4,3642.7,3.69574667]
[1753456983127,4.425,3643.4,3642.7,0.4629]
[1753456983328,0.02748477,3643.3,3642.6,0.7636]
[1753456983636,0.002,3644.3,3643.5,0.7636]
[1753456983978,0.002,3644.3,3643.6,0.97804538]
[1753456984194,0.002,3644.3,3643.7,0.17416454]
[1753456984711,0.002,3644.3,3643.6,0.4877]
[1753456984891,0.002,3644.3,3644.2,3.50768649]
[1753456985491,0.002,3644.3,3644.2,4.45828649]
[1753456988202,0.002,3644.3,3644.2,4.59588649]
[1753456988494,0.002,3644.3,3644.2,5.77219802]
[1753456989259,0.002,3644.3,3644.2,3.02811153]
[1753456989466,0.002,3644.3,3644.2,0.9012]
[1753456989659,0.002,3644.3,3644.2,1.2196]
[1753456989965,0.002,3644.3,3644.2,4.56978649]
[1753456990163,0.002,3644.3,3644.2,1.8257]
[1753456990701,0.002,3644.3,3644.2,1.3572]
[1753456990858,0.002,3644.3,3644.2,0.9012]
[1753456991063,0.002,3644.3,3644.2,0.7636]
[1753456991692,0.002,3644.3,3644.2,1.2196]
[1753456992079,0.002,3644.3,3644.2,4.84231543]
[1753456992279,0.002,3644.3,3644.2,4.97991543]
[1753456992792,0.002,3644.3,3644.2,5.00735629]
[1753456993210,0.002,3644.3,3644.2,1.3572]
[1753456993509,0.002,3644.3,3644.2,4.56978649]
[1753456993706,0.002,3644.3,3644.2,4.10128649]
[1753456993910,0.002,3644.3,3644.2,1.3572]
[1753456994115,0.002,3644.3,3644.2,4.10128649]
[1753456994407,0.002,3644.3,3644.2,4.56978649]
[1753456995407,0.002,3644.3,3644.2,1.3572]
[1753456995796,0.002,3644.3,3644.2,0.1376]
[1753456995975,0.002,3644.3,3644.0,0.1376]
[1753456996176,0.4659,3644.3,3643.5,0.7989]
[1753456996379,0.4659,3644.3,3643.5,0.9365]
[1753456996380,2.88190777,3644.0,3643.5,0.9365]
[1753456996572,3.34580777,3644.0,3643.5,0.9365]
[1753456996773,0.6015,3644.0,3643.5,1.3925]
[1753456996977,0.1376,3644.0,3643.6,0.456]
[1753456997306,0.002,3644.3,3643.8,2.74438772]
[1753456997483,0.002,3644.3,3644.2,3.52558649]
[1753456998113,0.002,3644.3,3644.2,4.58768649]
[1753456998409,0.002,3644.3,3644.2,4.11918649]
[1753457000420,0.002,3644.3,3644.2,4.11918649]
[1753457000817,0.002,3644.3,3644.2,4.58768649]
[1753457001605,0.002,3644.3,3644.2,15.75185829]
[1753457001918,0.002,3644.3,3644.2,9.91822622]
[1753457002230,0.002,3644.3,3644.2,9.44972622]
[1753457002529,0.002,3644.3,3644.2,4.58768649]
[1753457002732,0.002,3644.3,3644.2,4.61512735]
[1753457002911,0.002,3644.3,3644.2,1.3751]
[1753457003431,0.002,3644.3,3643.8,0.7852]
[1753457003737,0.4659,3644.3,3644.0,0.1376]
[1753457003898,0.002,3644.3,3644.0,0.1376]
[1753457004233,0.002,3644.3,3644.0,2.88182468]
[1753457004419,0.002,3644.3,3644.0,2.88183348]
[1753457004620,0.002,3644.3,3644.0,3.33783348]
[1753457004819,0.002,3644.3,3644.2,2.74408649]
[1753457005023,0.002,3644.3,3644.2,3.65058649]
[1753457005226,0.002,3644.3,3644.2,4.57508649]
[1753457008107,0.002,3644.3,3644.2,4.10658649]
[1753457008611,0.002,3644.3,3644.2,0.1376]
[1753457008806,0.002,3644.3,3644.2,2.88168649]
[1753457009006,0.002,3644.3,3644.2,0.1376]
[1753457009457,0.002,3644.3,3643.8,1.2245]
[1753457009634,0.4659,3644.3,3644.0,0.1376]
[1753457010067,0.4659,3644.3,3644.1,2.74415627]
[1753457010445,0.002,3644.3,3644.2,2.74408649]
[1753457011770,0.002,3644.3,3644.2,3.20008649]
[1753457012179,0.002,3644.3,3644.1,2.74415139]
[1753457012386,0.002,3644.3,3644.2,2.74408649]
[1753457012872,0.002,3644.3,3644.2,3.66858649]
[1753457013074,0.002,3644.3,3644.2,3.80618649]
[1753457013571,0.002,3644.3,3644.2,3.33768649]
[1753457014477,0.002,3644.3,3644.2,4.73838809]
[1753457015949,0.002,3644.3,3644.2,4.26988809]
[1753457016162,0.002,3644.3,3644.2,3.33768649]
[1753457017391,0.002,3644.3,3644.2,3.80938649]
[1753457017560,0.002,3644.3,3644.2,4.14298649]
[1753457017765,0.002,3644.3,3644.2,15.77885829]
[1753457018248,0.002,3645.1,3645.0,3.56068422]
[1753457018790,0.002,3645.1,3645.0,4.49048422]
[1753457019583,0.002,3645.1,3645.0,4.51791906]
[1753457022000,0.002,3645.7,3645.6,2.74303269]
[1753457022208,0.002,3645.7,3645.6,2.77046301]
[1753457022507,0.002,3645.7,3645.6,3.70026301]
[1753457022711,0.002,3645.7,3645.6,4.78540127]
[1753457023309,0.002,3645.7,3645.6,4.28627095]
[1753457024072,0.002,3645.7,3645.6,9.93727095]
[1753457024672,0.002,3645.7,3645.6,9.46557095]
[1753457025209,0.002,3646.5,3646.4,3.51873089]
[1753457025454,0.002,3646.5,3646.4,8.57928103]
[1753457025577,0.002,3646.5,3646.4,8.55085673]
[1753457025772,0.002,3646.5,3646.4,9.00895673]
[1753457026200,0.002,3646.5,3646.4,9.48065673]
[1753457028112,1e-08,3646.5,3646.4,13.03065673]
[1753457028882,1e-08,3646.5,3646.4,13.16745673]
[1753457029812,0.0336,3648.1,3647.6,2.74145984]
[1753457029813,0.472,3648.1,3647.6,2.74145984]
[1753457030107,3.49828326,3648.0,3647.4,2.74167453]
[1753457030307,0.472,3648.0,3647.8,2.74132965]
[1753457030468,0.1368,3648.2,3647.6,0.1368]
[1753457030668,0.472,3648.1,3647.6,4.5408]
[1753457030906,0.472,3648.0,3647.6,4.5408]
[1753457031108,0.285,3648.1,3647.6,4.5408]
[1753457031417,0.1368,3648.2,3647.7,2.74140622]
[1753457031617,0.1368,3648.2,3647.6,1.32002924]
[1753457031921,0.472,3648.6,3648.1,2.74115292]
[1753457032100,0.472,3648.6,3648.2,0.1368]
[1753457032305,0.472,3648.6,3648.3,2.7409425]
[1753457032594,0.1368,3648.7,3648.2,0.1368]
[1753457032799,0.472,3649.1,3648.6,2.87757465]
[1753457033007,0.285,3649.3,3648.9,0.1368]
[1753457033208,0.472,3649.0,3648.7,2.74069577]
[1753457033387,0.472,3649.0,3648.7,0.1368]
[1753457033584,0.4218,3649.2,3648.7,0.1368]
[1753457033922,0.1368,3649.2,3648.6,0.1368]
[1753457034140,0.31248477,3649.1,3648.6,0.1368]
[1753457034422,0.757,3649.0,3648.6,0.1368]
[1753457034723,3.21261354,3648.9,3648.6,0.1368]
[1753457034924,0.472,3648.8,3648.4,0.1368]
[1753457035110,2.74062705,3648.8,3648.4,0.1368]
[1753457035318,2.74062705,3648.8,3648.1,7.14310171]
[1753457035319,0.7906,3648.7,3648.1,2.74114291]
[1753457035494,0.7906,3648.7,3648.3,0.1368]
[1753457035690,0.472,3648.6,3648.1,2.74113143]
[1753457036022,0.472,3648.5,3648.2,0.1368]
[1753457036190,0.472,3648.5,3648.2,2.8778693]
[1753457036394,0.472,3648.5,3648.2,0.1368]
[1753457037600,0.472,3648.5,3648.2,2.87787731]
[1753457037911,0.1704,3648.7,3648.2,0.1368]
[1753457038112,0.1704,3648.7,3648.3,2.74100036]
[1753457038424,3.38310749,3648.7,3648.2,0.5949]
[1753457038621,0.472,3648.6,3648.2,0.1368]
[1753457039031,2.74079294,3648.6,3648.2,0.1368]
[1753457039328,0.472,3648.6,3648.2,0.1368]
[1753457039529,0.472,3648.6,3648.2,2.87786924]
[1753457039889,0.472,3648.5,3647.7,0.7868]
[1753457040089,0.02748477,3648.4,3647.4,0.7868]
[1753457040334,2.74126774,3648.0,3647.6,0.1368]
[1753457040543,2.74126774,3648.0,3647.1,2.74190183]
[1753457040544,0.757,3647.9,3647.1,0.7804]
[1753457040714,2.74203381,3647.0,3646.7,0.4581]
[1753457040904,2.74203381,3647.0,3645.0,0.1393997]
[1753457040905,2.74217754,3646.8,3645.9,0.7804]
[1753457041107,2.74233185,3646.6,3645.9,0.7804]
[1753457041335,0.9274,3646.7,3646.2,0.1368]
[1753457041536,2.74251386,3646.3,3645.6,2.74303269]
[1753457041839,2.74265653,3646.1,3645.6,0.1368]
[1753457042025,2.74280027,3646.0,3645.2,2.74332621]
[1753457042240,4.399,3646.1,3645.7,2.74292452]
[1753457042449,0.472,3646.5,3645.8,0.48552882]
[1753457042618,4.4316,3646.6,3646.1,2.74264466]
[1753457042938,4.4316,3646.6,3646.4,0.1368]
[1753457042939,4.398,3646.6,3646.4,0.1368]
[1753457043144,0.472,3646.9,3646.4,2.87921823]
[1753457043360,4.87,3646.9,3646.4,0.1368]
[1753457043639,3.21413158,3646.8,3646.4,0.1368]
[1753457043804,2.74232769,3646.6,3646.4,0.1368]
[1753457044005,0.0336,3646.2,3645.3,0.7757]
[1753457044271,2.74290121,3645.8,3645.0,0.4591]
[1753457044403,0.1368,3645.7,3645.2,0.1368]
[1753457044610,0.472,3645.6,3645.2,0.1368]
[1753457044807,0.1368,3645.7,3645.2,0.1368]
[1753457045209,0.472,3645.6,3645.2,0.1368]
[1753457045534,0.1368,3645.7,3645.2,0.1368]
[1753457045733,0.472,3645.6,3645.2,0.1368]
[1753457046539,0.1368,3645.7,3645.3,2.74325844]
[1753457046737,4.398,3645.8,3645.4,3.21033833]
[1753457046950,0.1368,3646.1,3645.6,0.1368]
[1753457047264,2.74260389,3646.2,3645.7,0.7884]
[1753457047560,2.74273176,3646.0,3645.0,2.74446911]
[1753457047852,0.5869,3645.9,3645.3,0.1368]
[1753457048016,2.74290588,3645.8,3645.3,0.1368]
[1753457048212,0.4501,3645.7,3645.3,0.1368]
[1753457048626,4.5348,3645.9,3645.5,2.74308671]
[1753457048848,4.5348,3645.9,3645.6,2.74303245]
[1753457049052,4.5348,3645.9,3645.5,2.74305376]
[1753457049354,4.5348,3645.9,3645.7,2.74294036]
[1753457049542,2.74223396,3646.7,3646.0,2.74267274]
[1753457049855,2.74206733,3646.9,3646.1,2.74262886]
[1753457049856,4.5348,3646.6,3646.1,2.74262886]
[1753457050154,4.398,3646.5,3646.2,0.4672]
[1753457050353,4.398,3646.5,3646.2,3.20976475]
[1753457050651,4.398,3646.6,3646.3,0.4672]
[1753457050858,4.398,3646.6,3646.3,3.34647755]
[1753457051157,7.14030126,3646.6,3646.3,0.1368]
[1753457051361,2.74259406,3646.2,3645.5,1.0762295]
[1753457051522,0.1368,3646.3,3645.8,0.1368]
[1753457051726,2.74283679,3645.9,3645.1,0.4672]
[1753457051946,2.74283679,3645.9,3645.5,0.1368]
[1753457052121,3.19299745,3645.8,3645.5,0.1368]
[1753457052474,3.19299745,3645.8,3645.0,3.50707174]
[1753457052475,0.02748477,3645.7,3645.0,3.50707174]
[1753457052622,2.87978008,3645.7,3645.3,0.001]
[1753457052828,0.5869,3645.7,3645.3,0.001]
[1753457053334,4.9849,3645.7,3645.3,0.001]
[1753457053831,4.5348,3645.7,3645.3,0.001]
[1753457054423,7.27776449,3645.7,3645.3,0.4682]
[1753457054626,2.74303821,3645.6,3645.3,0.001]
[1753457054818,2.74318318,3645.4,3645.3,0.001]
[1753457055046,2.87998318,3645.4,3645.3,0.001]
[1753457055244,3.61508318,3645.4,3645.3,0.001]
[1753457055595,4.9849,3645.4,3645.3,0.001]
[1753457055727,7.72808318,3645.4,3645.3,0.001]
[1753457057024,8.01308318,3645.4,3645.3,0.001]
[1753457057252,12.04619291,3645.4,3645.3,0.001]
[1753457058246,12.07979291,3645.4,3645.3,0.001]
[1753457059963,11.79479291,3645.4,3645.3,0.001]
[1753457060348,3.1368,3645.4,3645.3,0.001]
[1753457060552,7.398,3645.4,3645.3,0.4682]
[1753457060950,4.398,3645.4,3645.3,0.001]
[1753457061128,4.398,3645.4,3645.3,0.4682]
[1753457061464,0.1368,3645.5,3645.3,0.4682]
[1753457061669,4.398,3645.4,3645.3,0.001]
[1753457062379,4.397,3645.4,3645.3,0.001]
[1753457062731,4.397,3645.4,3645.3,0.4682]
[1753457063126,4.397,3645.4,3645.3,3.21145844]
[1753457063665,0.1368,3645.8,3645.3,3.21145844]
[1753457063866,0.002,3646.5,3645.5,0.7983]
[1753457064092,4.5338,3646.4,3646.0,2.74272267]
[1753457064385,0.1368,3646.4,3646.1,3.20984282]
[1753457064564,4.397,3646.3,3646.2,0.4672]
[1753457064726,4.8471,3646.3,3645.5,4.00857856]
[1753457064931,0.02748477,3646.2,3645.5,0.4672]
[1753457065133,0.1368,3645.9,3645.5,0.4672]
[1753457065347,0.1368,3645.9,3645.6,0.9062]
[1753457065584,0.1368,3646.1,3645.7,0.4672]
[1753457065747,0.1368,3646.1,3645.4,0.1368]
[1753457065934,0.1368,3646.1,3645.4,0.604]
[1753457066555,2.74278243,3646.0,3645.4,0.604]
[1753457066757,4.42348477,3645.9,3645.3,0.001]
[1753457066953,2.77668142,3645.6,3645.3,0.001]
[1753457067159,2.74318318,3645.4,3645.3,0.001]
[1753457067359,0.02748477,3645.4,3645.3,0.001]
[1753457067544,4.12259608,3645.4,3645.3,0.001]
[1753457067752,7.40759608,3645.4,3645.3,0.001]
[1753457067960,7.38011131,3645.4,3645.3,0.001]
[1753457069877,7.09511131,3645.4,3645.3,0.001]
[1753457070034,4.5318,3645.4,3645.3,0.001]
[1753457070240,0.0336,3645.9,3645.3,0.9072]
[1753457070444,4.395,3645.8,3645.6,2.74298783]
[1753457070687,4.395,3645.8,3645.7,0.4672]
[1753457071263,4.395,3645.8,3645.7,0.9062]
[1753457071874,0.002,3646.5,3645.8,0.7995]
[1753457072085,4.395,3646.4,3646.3,2.74244658]
[1753457072287,4.395,3646.4,3646.3,0.9062]
[1753457072488,4.395,3646.4,3646.3,3.6487061]
[1753457072886,4.395,3646.4,3646.3,0.4672]
[1753457073087,4.395,3646.4,3645.9,2.7427344]
[1753457073088,4.395,3646.4,3646.0,0.1368]
[1753457073290,4.395,3646.4,3646.0,2.87953043]
[1753457073589,0.002,3646.5,3646.4,2.74243089]
[1753457074002,0.002,3646.5,3646.3,2.74248724]
[1753457074185,0.002,3646.5,3646.4,2.74243089]
[1753457074364,0.002,3646.5,3646.4,3.67605519]
[1753457074558,0.002,3646.5,3646.4,4.59865519]
[1753457074768,0.002,3646.5,3646.4,5.33277695]
[1753457075060,0.002,3646.5,3646.4,8.30535265]
[1753457075061,1e-08,3646.5,3646.4,8.30535265]
[1753457075262,1.511,3647.9,3647.5,3.56930383]
[1753457075491,0.1368,3648.3,3647.6,0.9062]
[1753457075690,4.394,3648.3,3647.8,0.1368]
[1753457075992,4.394,3648.3,3647.9,0.604]
[1753457076168,4.394,3648.3,3647.9,2.87809691]
[1753457076374,4.394,3648.3,3648.0,0.465]
[1753457077201,4.394,3648.3,3648.1,0.465]
[1753457077504,0.1368,3648.5,3648.2,0.465]
[1753457077797,4.394,3648.4,3647.8,2.74131538]
[1753457078004,4.394,3648.4,3648.0,0.1368]
[1753457078296,0.11320766,3648.3,3647.9,0.1368]
[1753457078501,2.85427751,3648.3,3647.9,0.1368]
[1753457078689,0.08572289,3648.3,3647.9,0.6018]
[1753457078884,4.47872289,3648.3,3647.9,0.1368]
[1753457079183,0.08572289,3648.2,3648.0,0.465]
[1753457080264,0.08572289,3648.2,3648.0,3.20622757]
[1753457080606,0.08572289,3648.2,3648.1,0.465]
[1753457081302,0.08572289,3648.2,3648.1,4.40438713]
[1753457081482,0.08572289,3648.3,3648.2,2.74107779]
[1753457081668,0.08572289,3648.3,3648.2,3.20607779]
[1753457082069,0.08572289,3648.3,3648.1,0.1368]
[1753457082270,0.08572289,3648.3,3648.0,0.1368]
[1753457082483,0.23849485,3648.3,3648.0,0.1368]
[1753457082671,0.23853638,3648.3,3648.0,0.1368]
[1753457082872,0.08572289,3648.3,3648.0,0.1368]
[1753457083171,0.4694,3648.2,3647.2,3.0]
[1753457083387,0.11932289,3648.3,3647.9,0.1368]
[1753457083675,2.86032572,3648.3,3647.9,0.1368]
[1753457083874,2.86032572,3648.3,3647.6,0.465]
[1753457083875,2.74120276,3648.1,3647.6,0.1368]
[1753457084080,4.41748477,3648.0,3647.6,0.1368]
[1753457084288,4.88688477,3648.0,3647.3,0.465]
[1753457084489,8.13384659,3648.0,3647.1,3.51375227]
[1753457084782,2.87817892,3647.8,3647.3,0.1368]
[1753457084997,0.1368,3647.8,3647.3,0.1368]
[1753457085201,0.1368,3647.8,3647.4,0.465]
[1753457085376,0.1368,3647.8,3647.4,3.20666046]
[1753457085575,0.1368,3647.8,3647.4,0.465]
[1753457085883,0.1368,3647.8,3647.3,0.1368]
[1753457086204,2.74157241,3647.6,3646.9,2.74199476]
[1753457086405,4.41748477,3647.5,3646.9,2.74199476]
[1753457086608,2.741679,3647.4,3646.7,1.2369]
[1753457086905,4.41748477,3647.5,3646.7,1.2369]
[1753457086906,2.76924216,3647.3,3646.7,3.97905404]
[1753457087286,0.02748477,3647.3,3647.2,2.74182934]
[1753457087485,3.0336,3648.4,3647.6,2.74152385]
[1753457087688,3.0336,3648.4,3647.3,0.7719]
[1753457087689,2.74122643,3648.1,3647.5,0.465]
[1753457088006,4.8584,3648.3,3647.5,0.465]
[1753457088007,5.82686788,3648.2,3647.6,2.74152556]
[1753457088188,5.74112607,3648.2,3647.5,0.465]
[1753457088508,4.8584,3648.3,3647.5,0.465]
[1753457088509,3.4694,3648.3,3647.6,2.74152867]
[1753457088680,4.389,3648.1,3647.5,3.20656967]
[1753457088881,6.21042847,3648.3,3647.6,2.74147579]
[1753457089185,2.74108724,3648.2,3647.6,2.74147579]
[1753457089398,0.0336,3648.4,3647.9,2.74123718]
[1753457089598,0.0336,3648.9,3648.0,0.02741228]
[1753457089908,0.0336,3648.9,3648.1,3.20615037]
[1753457090112,0.0336,3648.9,3647.9,0.453]
[1753457090113,0.0336,3648.9,3647.7,0.02741453]
[1753457090411,0.0336,3648.9,3647.6,0.27196373]
[1753457090412,4.389,3648.6,3648.2,2.74103082]
[1753457090585,3.24355893,3648.9,3648.3,2.74099462]
[1753457090797,3.24355893,3648.9,3648.4,2.74090436]
[1753457090798,0.0336,3648.9,3648.4,2.74090436]
[1753457091013,0.08571502,3649.0,3648.5,0.02740852]
[1753457091308,2.77385192,3649.3,3648.6,2.74077728]
[1753457091475,4.391,3648.7,3648.6,2.74077728]
[1753457091682,0.002,3648.7,3648.6,3.20577728]
[1753457091882,4.39,3648.7,3648.1,0.7753]
[1753457092520,2.7408684,3648.5,3648.0,0.465]
[1753457092700,2.7409073,3648.5,3648.0,0.465]
[1753457092905,2.74079685,3648.6,3648.0,0.465]
[1753457093117,2.74086063,3648.5,3648.1,0.465]
[1753457093429,0.71308606,3648.5,3647.6,0.465]
[1753457093609,0.002,3648.7,3647.6,0.465]
[1753457093610,7.12893987,3648.4,3647.6,0.465]
[1753457093791,0.0336,3648.2,3647.4,0.7764]
[1753457093996,2.74146183,3647.7,3647.3,0.465]
[1753457094209,2.74146183,3647.7,3647.1,0.7764]
[1753457094210,4.388,3647.6,3647.4,0.465]
[1753457094523,4.388,3647.6,3647.5,3.65958983]
[1753457094727,2.74102501,3648.3,3647.6,2.74150187]
[1753457094930,4.387,3648.2,3647.7,3.20644826]
[1753457095131,0.503,3648.6,3647.8,0.918]
[1753457095296,4.387,3648.5,3647.9,1.2717]
[1753457095494,2.74097808,3648.4,3647.6,0.465]
[1753457095699,2.74097808,3648.4,3647.7,2.74143191]
[1753457095899,2.74100407,3648.3,3647.8,0.465]
[1753457096317,0.1368,3648.0,3647.3,1.2841]
[1753457096596,4.387,3647.9,3647.5,0.1368]
[1753457097022,2.74138391,3647.8,3647.3,1.2841]
[1753457097221,4.387,3647.9,3647.3,1.4209]
[1753457097422,2.87824203,3647.8,3647.3,0.9559]
[1753457097603,2.7414549,3647.7,3647.3,0.1368]
[1753457097809,2.87818294,3647.8,3647.4,0.465]
[1753457098018,0.1368,3647.8,3647.5,0.465]
[1753457098217,2.74108376,3648.2,3647.6,0.465]
[1753457098423,7.12817528,3648.1,3647.6,1.0548]
[1753457098625,4.387,3648.1,3647.6,0.5898]
[1753457098820,4.387,3648.1,3647.7,0.465]
[1753457099124,4.387,3648.0,3647.7,0.465]
[1753457100138,2.87790891,3648.2,3647.7,0.465]
[1753457100346,4.387,3647.9,3647.7,0.465]
[1753457100844,3.002,3648.4,3647.9,2.74129907]
[1753457101032,7.26380324,3648.3,3647.8,0.9262]
[1753457101219,0.49688477,3648.2,3647.4,0.8327]
[1753457101411,0.1704,3647.9,3647.4,0.1368]
[1753457101746,4.386,3647.8,3647.4,3.206679]
[1753457102040,0.1704,3647.9,3647.5,0.465]
[1753457102356,4.386,3647.8,3647.5,0.465]
[1753457102553,2.74145351,3647.7,3647.3,0.1368]
[1753457102855,2.74145351,3647.7,3646.9,0.1368]
[1753457102856,0.1368,3647.5,3646.9,0.1368]
[1753457103053,7.1277236,3647.4,3646.9,0.1368]
[1753457103561,2.74196331,3647.1,3646.7,0.7763]
[1753457103713,4.386,3647.0,3646.7,0.1368]
[1753457104048,4.4196,3647.0,3646.7,0.1368]
[1753457104207,7.16160835,3647.0,3646.4,0.465]
[1753457104412,7.16160835,3647.0,3646.5,0.1368]
[1753457104782,0.0336,3647.0,3646.7,2.74215663]
[1753457105071,4.385,3647.3,3647.2,2.74182934]
[1753457105209,6.582,3648.0,3647.2,0.918]
[1753457105210,6.7188,3648.0,3647.2,0.918]
[1753457105414,4.385,3647.9,3647.3,0.49241754]
[1753457105634,4.385,3647.9,3647.5,2.74153631]
[1753457105829,4.385,3647.9,3647.4,0.1368]
[1753457106034,0.1368,3647.7,3647.2,2.87862159]
[1753457106234,0.1368,3647.7,3647.4,2.741679]
[1753457106710,0.1368,3647.7,3647.2,0.1368]
[1753457106910,0.48668477,3647.6,3647.0,0.1368]
[1753457107145,4.5218,3647.5,3647.0,0.1368]
[1753457107448,0.1368,3647.1,3646.4,0.601]
[1753457107614,0.1368,3646.9,3646.4,0.601]
[1753457107809,0.1368,3646.9,3646.4,0.1368]
[1753457108240,4.385,3646.8,3646.5,3.20650239]
[1753457108446,4.385,3646.7,3646.5,2.74234771]
[1753457108649,0.1368,3646.9,3646.6,0.4642]
[1753457108828,4.385,3646.8,3646.6,0.4642]
[1753457109033,0.4592,3646.7,3646.1,0.4642]
[1753457109346,0.1368,3646.6,3646.2,2.74256824]
[1753457109558,0.1368,3646.6,3646.1,3.34363855]
[1753457109857,0.4592,3646.7,3646.3,2.74246466]
[1753457110147,0.4592,3646.7,3646.2,2.74255228]
[1753457110347,4.385,3646.8,3646.2,2.74255228]
[1753457110520,0.06108477,3646.7,3645.9,3.52180354]
[1753457110720,0.06108477,3646.7,3645.9,1.2432]
[1753457110946,0.0336,3646.7,3646.3,2.74246146]
[1753457111150,0.0336,3647.1,3646.7,2.74215498]
[1753457111327,4.384,3647.0,3646.0,0.4642]
[1753457111531,4.384,3647.0,3646.3,0.4562]
[1753457111732,0.02748477,3646.9,3646.5,2.74235462]
[1753457111931,4.384,3647.0,3646.6,2.7422688]
[1753457112133,4.384,3647.0,3646.5,3.20653234]
[1753457112647,5.15568477,3646.9,3646.0,0.4642]
[1753457112844,4.87068477,3646.9,3646.0,0.4642]
[1753457113020,4.384,3646.9,3646.1,2.74258548]
[1753457113340,4.384,3646.9,3646.4,2.74242437]
[1753457113529,4.384,3646.9,3646.4,0.4642]
[1753457113530,2.74213578,3646.8,3646.4,0.4642]
[1753457113736,7.58527571,3646.9,3646.4,0.4642]
[1753457113931,4.384,3646.9,3646.3,2.74244671]
[1753457114253,4.384,3646.9,3646.3,3.20663934]
[1753457114579,4.384,3646.9,3646.4,2.74242052]
[1753457114727,7.12608019,3646.9,3646.4,0.4642]
[1753457114922,7.12608019,3646.9,3646.2,2.74252496]
[1753457115129,2.7422069,3646.7,3646.1,3.20683796]
[1753457115533,4.384,3646.6,3646.1,0.4642]
[1753457115731,4.384,3646.6,3646.2,0.4642]
[1753457115954,4.384,3646.6,3646.2,3.20675122]
[1753457116149,4.384,3646.6,3646.3,0.4642]
[1753457116354,4.384,3646.6,3646.2,2.74255122]
[1753457116581,4.384,3646.6,3646.4,0.4642]
[1753457118289,5.74155682,3647.6,3646.6,3.53522371]
[1753457118290,2.74175593,3647.3,3646.6,3.53522371]
[1753457118589,4.383,3647.2,3646.7,0.4642]
[1753457118766,4.383,3647.2,3646.6,3.53522371]
[1753457118966,4.383,3647.2,3646.7,3.20639987]
[1753457119167,4.383,3647.2,3646.8,0.4642]
[1753457119390,4.383,3647.2,3646.9,0.4642]
[1753457119687,6.20075456,3647.6,3646.9,3.2061953]
[1753457119988,0.1368,3647.0,3646.9,3.2061953]
[1753457120193,4.5198,3647.0,3646.9,0.4642]
[1753457120395,4.5198,3647.0,3646.9,3.20625489]
[1753457120554,0.1368,3647.0,3646.9,3.20625489]
[1753457120893,6.583,3647.9,3647.6,2.74147566]
[1753457121097,4.5188,3647.8,3647.7,2.74145351]
[1753457121256,0.1368,3648.0,3647.8,2.74137836]
[1753457121457,0.1368,3648.0,3647.9,2.74130321]
[1753457121756,4.384,3648.2,3648.1,2.74115292]
[1753457121985,4.384,3648.2,3648.1,3.66155292]
[1753457122174,0.002,3648.2,3648.1,3.20535292]
[1753457122506,0.002,3648.2,3648.1,4.3155174]
[1753457122650,0.002,3648.2,3648.1,5.2416174]
[1753457122853,1e-08,3648.2,3648.1,8.2416174]
[1753457123084,1e-08,3648.4,3648.3,2.74100265]
[1753457123292,0.08571251,3649.2,3649.1,2.74040174]
[1753457123554,0.1368,3649.7,3649.6,2.7400263]
[1753457123763,0.0010084,3650.0,3649.9,2.73980109]
[1753457123995,0.0010084,3650.0,3649.7,2.87674841]
[1753457124158,0.08571251,3649.9,3649.5,0.1368]
[1753457124363,0.002,3649.7,3649.3,2.87704137]
[1753457124675,0.002,3649.7,3649.3,0.1368]
[1753457124877,0.002,3649.7,3649.4,3.20435484]
[1753457125082,0.002,3649.7,3649.3,0.1368]
[1753457125302,0.002,3649.7,3649.4,3.20435888]
[1753457125503,0.002,3649.7,3649.4,0.4642]
[1753457125960,0.002,3649.7,3649.3,0.1368]
[1753457126165,0.002,3649.7,3649.3,3.34123101]
[1753457126389,0.002,3649.7,3649.4,0.4642]
[1753457126576,0.002,3649.7,3649.3,0.1368]
[1753457126904,0.4928,3649.6,3649.3,0.1368]
[1753457127060,2.74031198,3649.3,3648.7,0.601]
[1753457127263,5.15168477,3649.2,3647.9,0.8057]
[1753457127490,5.15168477,3649.2,3647.2,2.74177153]
[1753457127491,0.0336,3649.0,3647.4,0.8057]
[1753457127678,2.74091391,3648.5,3647.7,2.74143011]
[1753457127874,4.38,3648.4,3647.7,2.74143011]
[1753457128166,0.48668477,3648.3,3647.4,2.74162137]
[1753457128366,2.74113788,3648.2,3647.4,2.74162137]
[1753457128567,2.76865062,3648.1,3647.4,2.74162137]
[1753457128767,0.02748477,3648.1,3647.3,0.4642]
[1753457128973,3.28593753,3648.3,3647.3,0.4642]
[1753457129171,0.08572118,3648.3,3647.4,0.48361679]
[1753457129370,2.82658951,3648.5,3647.6,0.8151]
[1753457129694,2.74100265,3648.3,3647.6,0.8151]
[1753457129882,4.379,3648.4,3647.7,0.9204]
[1753457130070,7.11994743,3648.4,3647.8,0.4642]
[1753457130272,4.379,3648.4,3647.9,0.4778548]
[1753457130470,3.0336,3649.0,3648.0,2.74115828]
[1753457130471,4.379,3648.6,3648.0,2.74115828]
[1753457130698,4.379,3648.6,3648.1,0.4642]
[1753457130862,4.379,3648.6,3647.8,2.7413335]
[1753457131063,4.379,3648.6,3647.9,0.9204]
[1753457131293,7.11980331,3648.6,3648.0,0.4642]
[1753457131595,0.08571178,3648.5,3648.0,0.4642]
[1753457132174,2.74099075,3648.4,3648.0,0.4642]
[1753457132360,2.74099075,3648.4,3647.7,3.2056468]